[Event "Early-Titled-Tuesday-Blitz-December-26-2023"]
[Site "Chess.com"]
[Date "2023.12.26"]
[Round "3"]
[White "Abduzhaparov"]
[Black "isaak2009"]
[Result "0-1"]
[WhiteElo "2429"]
[BlackElo "2623"]
[TimeControl "180+1"]
[EndTime "8:27:23 PST"]
[Termination "isaak2009 won on time"]

1. Nf3 {[%clk 0:03:00.9]} 1... d5 {[%clk 0:02:58.6]} 2. c4 {[%clk 0:03:01.8]}
2... d4 {[%clk 0:02:58.2]} 3. e3 {[%clk 0:03:02.2]} 3... Nc6 {[%clk 0:02:57.3]}
4. b4 {[%clk 0:03:02.4]} 4... dxe3 {[%clk 0:02:51.4]} 5. fxe3 {[%clk 0:03:03.3]}
5... Nxb4 {[%clk 0:02:51.7]} 6. d4 {[%clk 0:03:03.7]} 6... Nc6 {[%clk 0:02:51]}
7. d5 {[%clk 0:03:03.4]} 7... Nb8 {[%clk 0:02:51.5]} 8. Nc3 {[%clk 0:03:02.8]}
8... Nf6 {[%clk 0:02:51.7]} 9. e4 {[%clk 0:03:02.8]} 9... e5 {[%clk 0:02:50.2]}
10. Nxe5 {[%clk 0:02:57.9]} 10... Bc5 {[%clk 0:02:50.1]} 11. Bg5 {[%clk
0:02:46.3]} 11... O-O {[%clk 0:02:49.4]} 12. Bd3 {[%clk 0:02:43.1]} 12... h6
{[%clk 0:02:45.8]} 13. Bh4 {[%clk 0:02:39.8]} 13... Qd6 {[%clk 0:02:42.8]} 14.
Nf3 {[%clk 0:02:33.8]} 14... Ng4 {[%clk 0:02:36.9]} 15. Qe2 {[%clk 0:02:21.5]}
15... Re8 {[%clk 0:02:28.3]} 16. h3 {[%clk 0:01:33]} 16... Ne3 {[%clk
0:02:17.3]} 17. Na4 {[%clk 0:01:06.9]} 17... Bb4+ {[%clk 0:02:03.6]} 18. Kf2
{[%clk 0:01:02.3]} 18... Nf5 {[%clk 0:02:04.1]} 19. e5 {[%clk 0:00:43]} 19...
Qa6 {[%clk 0:02:03]} 20. Bxf5 {[%clk 0:00:23.8]} 20... Bxf5 {[%clk 0:02:01.8]}
21. g4 {[%clk 0:00:24.3]} 21... Bg6 {[%clk 0:01:52.1]} 22. Nb2 {[%clk
0:00:23.9]} 22... Nd7 {[%clk 0:01:48.8]} 23. Nd3 {[%clk 0:00:23.8]} 23... Bxd3
{[%clk 0:01:45.1]} 24. Qxd3 {[%clk 0:00:24.7]} 24... Nxe5 {[%clk 0:01:44.9]} 25.
Nxe5 {[%clk 0:00:25.5]} 25... Rxe5 {[%clk 0:01:45.4]} 26. Bg3 {[%clk 0:00:24.4]}
26... Bc5+ {[%clk 0:01:42.9]} 27. Kg2 {[%clk 0:00:20.4]} 27... Re3 {[%clk
0:01:43.1]} 28. Qf5 {[%clk 0:00:17.6]} 28... Qxc4 {[%clk 0:01:40.2]} 29. Rhf1
{[%clk 0:00:17.9]} 29... Qe4+ {[%clk 0:01:29.3]} 30. Qxe4 {[%clk 0:00:16.5]}
30... Rxe4 {[%clk 0:01:30.2]} 31. Bf2 {[%clk 0:00:13.9]} 31... Bd6 {[%clk
0:01:28.1]} 32. Rfd1 {[%clk 0:00:12.5]} 32... Rae8 {[%clk 0:01:27.6]} 33. Rab1
{[%clk 0:00:12.4]} 33... b6 {[%clk 0:01:27.6]} 34. Kf3 {[%clk 0:00:12.3]} 34...
Ra4 {[%clk 0:01:27]} 35. Rb2 {[%clk 0:00:11.2]} 35... Rf4+ {[%clk 0:01:27.7]}
36. Kg2 {[%clk 0:00:11.3]} 36... Ra4 {[%clk 0:01:24.8]} 37. Bg3 {[%clk 0:00:10]}
37... Bxg3 {[%clk 0:01:22.8]} 38. Kxg3 {[%clk 0:00:10.9]} 38... Re3+ {[%clk
0:01:23.1]} 39. Kg2 {[%clk 0:00:11.2]} 39... Rea3 {[%clk 0:01:23.8]} 40. Rdd2
{[%clk 0:00:10.7]} 40... Rc4 {[%clk 0:01:20.9]} 41. Rbc2 {[%clk 0:00:11.1]}
41... Rcc3 {[%clk 0:01:16.2]} 42. Rxc3 {[%clk 0:00:08.4]} 42... Rxc3 {[%clk
0:01:17.1]} 43. h4 {[%clk 0:00:07.5]} 43... Kf8 {[%clk 0:01:17]} 44. h5 {[%clk
0:00:06.5]} 44... Ke7 {[%clk 0:01:17.2]} 45. Kf2 {[%clk 0:00:06.2]} 45... Kd6
{[%clk 0:01:17.3]} 46. Kg2 {[%clk 0:00:06.1]} 46... f6 {[%clk 0:01:16.9]} 47.
Kf2 {[%clk 0:00:05.9]} 47... Rc5 {[%clk 0:01:16.8]} 48. Re2 {[%clk 0:00:05.9]}
48... Rxd5 {[%clk 0:01:17.2]} 49. Re8 {[%clk 0:00:06]} 49... Rd4 {[%clk
0:01:15.4]} 50. Kg3 {[%clk 0:00:06]} 50... Rd5 {[%clk 0:01:14.5]} 51. Kh4 {[%clk
0:00:05.7]} 51... Rg5 {[%clk 0:01:14.9]} 52. Ra8 {[%clk 0:00:04.9]} 52... a5
{[%clk 0:01:14.3]} 53. a4 {[%clk 0:00:03.3]} 53... Kc5 {[%clk 0:01:13.9]} 54.
Re8 {[%clk 0:00:02]} 54... Kb4 {[%clk 0:01:12.5]} 55. Re4+ {[%clk 0:00:01.9]}
55... Kb3 {[%clk 0:01:12.3]} 56. Rd4 {[%clk 0:00:01]} 56... f5 {[%clk
0:01:10.1]} 0-1

[Event "Early-Titled-Tuesday-Blitz-December-26-2023"]
[Site "Chess.com"]
[Date "2023.12.26"]
[Round "3"]
[White "RodokininEV"]
[Black "Witty_Alien"]
[Result "0-1"]
[WhiteElo "2614"]
[BlackElo "2458"]
[TimeControl "180+1"]
[EndTime "8:27:25 PST"]
[Termination "Witty_Alien won by resignation"]

1. d4 {[%clk 0:03:00.3]} 1... d5 {[%clk 0:02:59.5]} 2. c4 {[%clk 0:02:56.4]}
2... c6 {[%clk 0:02:59.5]} 3. Nc3 {[%clk 0:02:55.6]} 3... Nf6 {[%clk 0:02:57.3]}
4. Nf3 {[%clk 0:02:55.4]} 4... e6 {[%clk 0:02:57.6]} 5. Qb3 {[%clk 0:02:50.6]}
5... Nbd7 {[%clk 0:02:41.1]} 6. Bg5 {[%clk 0:02:47.6]} 6... h6 {[%clk
0:02:39.9]} 7. Bh4 {[%clk 0:02:47]} 7... Bd6 {[%clk 0:02:32.8]} 8. e3 {[%clk
0:02:46.9]} 8... O-O {[%clk 0:02:32.7]} 9. Rc1 {[%clk 0:02:45]} 9... e5 {[%clk
0:01:56.4]} 10. cxd5 {[%clk 0:02:42]} 10... exd4 {[%clk 0:01:52.1]} 11. Nxd4
{[%clk 0:02:40]} 11... Ne5 {[%clk 0:01:17.6]} 12. Be2 {[%clk 0:02:30.3]} 12...
g5 {[%clk 0:01:11.2]} 13. Bg3 {[%clk 0:02:28.5]} 13... h5 {[%clk 0:01:07.7]} 14.
h4 {[%clk 0:02:19.2]} 14... g4 {[%clk 0:01:04.9]} 15. O-O {[%clk 0:02:15.2]}
15... Ng6 {[%clk 0:00:35.7]} 16. dxc6 {[%clk 0:01:54]} 16... Bxg3 {[%clk
0:00:28.3]} 17. fxg3 {[%clk 0:01:54.1]} 17... Qe7 {[%clk 0:00:16.5]} 18. Ncb5
{[%clk 0:01:35.3]} 18... Ne4 {[%clk 0:00:10.6]} 19. cxb7 {[%clk 0:01:20.9]}
19... Bxb7 {[%clk 0:00:10.3]} 20. Nf5 {[%clk 0:01:20.8]} 20... Qe5 {[%clk
0:00:05]} 21. Rf4 {[%clk 0:01:15.1]} 21... Nxf4 {[%clk 0:00:02.4]} 22. gxf4
{[%clk 0:01:04]} 22... Qxf5 {[%clk 0:00:02.7]} 23. Nc7 {[%clk 0:00:58.9]} 23...
Rab8 {[%clk 0:00:01.7]} 24. Bd3 {[%clk 0:00:48.3]} 24... Rfc8 {[%clk 0:00:02.3]}
25. Qb4 {[%clk 0:00:39.7]} 25... g3 {[%clk 0:00:02.6]} 26. Qe7 {[%clk
0:00:35.7]} 26... Qg4 {[%clk 0:00:02.7]} 27. Bxe4 {[%clk 0:00:31.3]} 27... Bxe4
{[%clk 0:00:03.6]} 28. Qxe4 {[%clk 0:00:31.7]} 28... Qxh4 {[%clk 0:00:04.2]} 29.
Qc4 {[%clk 0:00:22.7]} 29... Qh2+ {[%clk 0:00:04.3]} 30. Kf1 {[%clk 0:00:23.1]}
30... Rxb2 {[%clk 0:00:04.6]} 31. Rc2 {[%clk 0:00:18.9]} 31... Qh1+ {[%clk
0:00:05]} 32. Ke2 {[%clk 0:00:18.5]} 32... Qxg2+ {[%clk 0:00:05.9]} 33. Kd3
{[%clk 0:00:19.1]} 33... Qxc2+ {[%clk 0:00:06.8]} 34. Qxc2 {[%clk 0:00:18.8]}
34... Rxc2 {[%clk 0:00:07.7]} 35. Nd5 {[%clk 0:00:18.1]} 35... g2 {[%clk
0:00:07.6]} 36. Nf6+ {[%clk 0:00:16]} 36... Kg7 {[%clk 0:00:08]} 37. Nxh5+
{[%clk 0:00:16.9]} 37... Kh6 {[%clk 0:00:08.4]} 0-1

[Event "Early-Titled-Tuesday-Blitz-December-26-2023"]
[Site "Chess.com"]
[Date "2023.12.26"]
[Round "3"]
[White "Chessdreamer2020"]
[Black "SHIVACalypso"]
[Result "0-1"]
[WhiteElo "2514"]
[BlackElo "2391"]
[TimeControl "180+1"]
[EndTime "8:27:27 PST"]
[Termination "SHIVACalypso won by resignation"]

1. e4 {[%clk 0:03:00]} 1... c5 {[%clk 0:02:52.7]} 2. Nf3 {[%clk 0:03:00.1]} 2...
Nc6 {[%clk 0:02:50.8]} 3. Bb5 {[%clk 0:02:59.8]} 3... g6 {[%clk 0:02:50.2]} 4.
O-O {[%clk 0:03:00.3]} 4... Bg7 {[%clk 0:02:49.5]} 5. c3 {[%clk 0:03:00.7]} 5...
e5 {[%clk 0:02:48.3]} 6. d4 {[%clk 0:02:59.8]} 6... cxd4 {[%clk 0:02:44.9]} 7.
cxd4 {[%clk 0:03:00.7]} 7... exd4 {[%clk 0:02:41.4]} 8. Bf4 {[%clk 0:03:00.6]}
8... Nge7 {[%clk 0:02:40.5]} 9. Bd6 {[%clk 0:03:01]} 9... O-O {[%clk 0:02:39.6]}
10. Nbd2 {[%clk 0:03:01.5]} 10... Re8 {[%clk 0:02:35.9]} 11. Bc4 {[%clk
0:03:00.2]} 11... h6 {[%clk 0:02:23.5]} 12. b4 {[%clk 0:02:23.6]} 12... b5
{[%clk 0:02:18.5]} 13. Bxb5 {[%clk 0:02:17.5]} 13... Qb6 {[%clk 0:02:18.2]} 14.
Bc4 {[%clk 0:01:56.4]} 14... Nxb4 {[%clk 0:02:17.8]} 15. e5 {[%clk 0:01:49.3]}
15... Nf5 {[%clk 0:02:12.7]} 16. Bxf7+ {[%clk 0:01:20.6]} 16... Kxf7 {[%clk
0:02:08.8]} 17. Qb3+ {[%clk 0:01:21]} 17... Re6 {[%clk 0:02:07.8]} 18. Bxb4
{[%clk 0:01:19.4]} 18... Rb8 {[%clk 0:02:00]} 19. Bd6 {[%clk 0:01:07.9]} 19...
Qxb3 {[%clk 0:01:59]} 20. Nxb3 {[%clk 0:01:08.1]} 20... Nxd6 {[%clk 0:01:58.9]}
21. exd6 {[%clk 0:01:07.4]} 21... Rxd6 {[%clk 0:01:58.8]} 22. Rfd1 {[%clk
0:01:04.7]} 22... d3 {[%clk 0:01:54.5]} 23. Rac1 {[%clk 0:01:05.2]} 23... Bb7
{[%clk 0:01:43.6]} 24. Ne1 {[%clk 0:01:01.1]} 24... Ba6 {[%clk 0:01:36.7]} 25.
Nc5 {[%clk 0:01:00.4]} 25... d2 {[%clk 0:01:32.3]} 26. Rxd2 {[%clk 0:00:54.6]}
26... Rxd2 {[%clk 0:01:31.3]} 27. Nxa6 {[%clk 0:00:55.1]} 27... Rbb2 {[%clk
0:01:27.2]} 28. Nc5 {[%clk 0:00:40.2]} 28... Bd4 {[%clk 0:01:15.9]} 29. Ne4
{[%clk 0:00:31.6]} 29... Bxf2+ {[%clk 0:01:12.4]} 30. Nxf2 {[%clk 0:00:30.6]}
30... Rxf2 {[%clk 0:01:12.3]} 31. a4 {[%clk 0:00:30.4]} 31... Rfd2 {[%clk
0:01:05.7]} 32. h3 {[%clk 0:00:26]} 32... Ra2 {[%clk 0:01:04.1]} 33. Rc4 {[%clk
0:00:23.8]} 33... Rd1 {[%clk 0:00:59.7]} 34. Re4 {[%clk 0:00:23.9]} 34... d5
{[%clk 0:00:58.5]} 35. Re5 {[%clk 0:00:21.5]} 35... d4 {[%clk 0:00:57.4]} 36.
Kh2 {[%clk 0:00:21.8]} 36... d3 {[%clk 0:00:57.6]} 37. Nf3 {[%clk 0:00:21.8]}
37... d2 {[%clk 0:00:48.4]} 38. Rd5 {[%clk 0:00:21.9]} 38... Raa1 {[%clk
0:00:45.1]} 39. Nxd2 {[%clk 0:00:16.8]} 39... Ra2 {[%clk 0:00:44]} 40. Rd7+
{[%clk 0:00:12.3]} 40... Ke8 {[%clk 0:00:44]} 41. Rxa7 {[%clk 0:00:11.6]} 41...
Rdxd2 {[%clk 0:00:44.2]} 42. Rh7 {[%clk 0:00:11.2]} 42... Rxg2+ {[%clk
0:00:44.5]} 43. Kh1 {[%clk 0:00:12.1]} 43... Rgc2 {[%clk 0:00:42.2]} 0-1

[Event "Early-Titled-Tuesday-Blitz-December-26-2023"]
[Site "Chess.com"]
[Date "2023.12.26"]
[Round "3"]
[White "Hikaru"]
[Black "FelixBlohberger"]
[Result "1-0"]
[WhiteElo "3222"]
[BlackElo "2778"]
[TimeControl "180+1"]
[EndTime "8:27:34 PST"]
[Termination "Hikaru won by resignation"]

1. Nf3 {[%clk 0:03:00.9]} 1... d5 {[%clk 0:02:59.5]} 2. e3 {[%clk 0:03:00.8]}
2... c5 {[%clk 0:02:55.3]} 3. b3 {[%clk 0:02:59]} 3... Nf6 {[%clk 0:02:54.8]} 4.
Bb2 {[%clk 0:02:59.4]} 4... g6 {[%clk 0:02:55.5]} 5. Bxf6 {[%clk 0:02:58.8]}
5... exf6 {[%clk 0:02:55.5]} 6. c3 {[%clk 0:02:59.7]} 6... f5 {[%clk 0:02:50.7]}
7. d4 {[%clk 0:02:59.9]} 7... Nc6 {[%clk 0:02:50.5]} 8. g3 {[%clk 0:02:59.6]}
8... cxd4 {[%clk 0:02:50.3]} 9. Nxd4 {[%clk 0:02:59.8]} 9... Bg7 {[%clk
0:02:41.3]} 10. Bg2 {[%clk 0:02:59.5]} 10... O-O {[%clk 0:02:41.9]} 11. O-O
{[%clk 0:02:52.6]} 11... Be6 {[%clk 0:02:41.3]} 12. Ne2 {[%clk 0:02:47.4]} 12...
Rc8 {[%clk 0:02:40.8]} 13. Nd2 {[%clk 0:02:47.8]} 13... Qa5 {[%clk 0:02:27.6]}
14. b4 {[%clk 0:02:47.6]} 14... Qb6 {[%clk 0:02:18.9]} 15. Rb1 {[%clk
0:02:43.9]} 15... Rfd8 {[%clk 0:02:16.6]} 16. a4 {[%clk 0:02:35.8]} 16... Ne5
{[%clk 0:02:02.9]} 17. a5 {[%clk 0:02:35.7]} 17... Qc7 {[%clk 0:02:01.4]} 18.
Nb3 {[%clk 0:02:35.9]} 18... Ng4 {[%clk 0:01:49.3]} 19. Nbd4 {[%clk 0:02:34]}
19... Qe7 {[%clk 0:01:36.6]} 20. Rc1 {[%clk 0:02:22.8]} 20... Nf6 {[%clk
0:01:36.5]} 21. Nf4 {[%clk 0:02:21.5]} 21... Ne4 {[%clk 0:01:34.6]} 22. Qd3
{[%clk 0:02:16.3]} 22... a6 {[%clk 0:01:33.4]} 23. Rfd1 {[%clk 0:02:16.3]} 23...
Rc7 {[%clk 0:01:27.4]} 24. Rc2 {[%clk 0:01:37.9]} 24... Rdc8 {[%clk 0:01:27.5]}
25. Rdc1 {[%clk 0:01:37.9]} 25... Bf6 {[%clk 0:01:21.1]} 26. Bf1 {[%clk
0:00:46.3]} 26... Kg7 {[%clk 0:01:16.1]} 27. Ndxe6+ {[%clk 0:00:43.7]} 27...
fxe6 {[%clk 0:01:15.1]} 28. c4 {[%clk 0:00:44.6]} 28... dxc4 {[%clk 0:00:49.7]}
29. Rxc4 {[%clk 0:00:45.5]} 29... Rxc4 {[%clk 0:00:34.2]} 30. Rxc4 {[%clk
0:00:46.4]} 30... Rxc4 {[%clk 0:00:34]} 31. Qxc4 {[%clk 0:00:47.3]} 31... Kf7
{[%clk 0:00:29.8]} 32. Bg2 {[%clk 0:00:42.9]} 32... Nd6 {[%clk 0:00:23.5]} 33.
Qb3 {[%clk 0:00:42.9]} 33... Ne4 {[%clk 0:00:10.4]} 34. Bxe4 {[%clk 0:00:42.9]}
34... fxe4 {[%clk 0:00:11.3]} 35. Qc4 {[%clk 0:00:43.4]} 35... Be5 {[%clk
0:00:04.9]} 36. Qxe4 {[%clk 0:00:42.5]} 36... Bxf4 {[%clk 0:00:05.4]} 37. Qxf4+
{[%clk 0:00:37.9]} 37... Kg7 {[%clk 0:00:05.6]} 38. Qe4 {[%clk 0:00:36.4]} 38...
Qd7 {[%clk 0:00:04.9]} 39. Kg2 {[%clk 0:00:36.5]} 39... Kf7 {[%clk 0:00:05]} 40.
g4 {[%clk 0:00:36.8]} 40... Kf8 {[%clk 0:00:04.6]} 41. Qd4 {[%clk 0:00:33.6]}
41... Qf7 {[%clk 0:00:02.4]} 42. Qf4 {[%clk 0:00:28.1]} 42... Ke7 {[%clk
0:00:01.3]} 43. Qxf7+ {[%clk 0:00:28]} 43... Kxf7 {[%clk 0:00:02.2]} 44. Kf3
{[%clk 0:00:27.5]} 1-0

[Event "Early-Titled-Tuesday-Blitz-December-26-2023"]
[Site "Chess.com"]
[Date "2023.12.26"]
[Round "3"]
[White "OneTrickPony_82"]
[Black "bazar-wokzal"]
[Result "0-1"]
[WhiteElo "2448"]
[BlackElo "2637"]
[TimeControl "180+1"]
[EndTime "8:27:34 PST"]
[Termination "bazar-wokzal won by resignation"]

1. d4 {[%clk 0:03:00.9]} 1... Nf6 {[%clk 0:02:57.7]} 2. c4 {[%clk 0:03:01.1]}
2... Nc6 {[%clk 0:02:57.4]} 3. Nc3 {[%clk 0:02:57.5]} 3... e5 {[%clk 0:02:56.9]}
4. d5 {[%clk 0:02:57.9]} 4... Ne7 {[%clk 0:02:57]} 5. h4 {[%clk 0:02:58.4]} 5...
Neg8 {[%clk 0:02:57]} 6. Nf3 {[%clk 0:02:50.6]} 6... Ng4 {[%clk 0:02:56.1]} 7.
Qc2 {[%clk 0:02:34.4]} 7... Bc5 {[%clk 0:02:52]} 8. Ne4 {[%clk 0:02:26.4]} 8...
Bb4+ {[%clk 0:02:52]} 9. Bd2 {[%clk 0:02:19.7]} 9... Bxd2+ {[%clk 0:02:52.1]}
10. Qxd2 {[%clk 0:02:16.1]} 10... d6 {[%clk 0:02:52.4]} 11. Qg5 {[%clk 0:02:03]}
11... g6 {[%clk 0:02:45.2]} 12. Qxd8+ {[%clk 0:02:01.4]} 12... Kxd8 {[%clk
0:02:45.1]} 13. h5 {[%clk 0:01:59.9]} 13... N8h6 {[%clk 0:02:37.8]} 14. hxg6
{[%clk 0:01:48.9]} 14... hxg6 {[%clk 0:02:37.5]} 15. Nfg5 {[%clk 0:01:42.4]}
15... Ke7 {[%clk 0:02:35.8]} 16. e3 {[%clk 0:01:35.2]} 16... f6 {[%clk
0:02:33.4]} 17. Nf3 {[%clk 0:01:21.4]} 17... Nf7 {[%clk 0:02:26.4]} 18. Rxh8
{[%clk 0:01:20.3]} 18... Nxh8 {[%clk 0:02:27.3]} 19. Be2 {[%clk 0:01:20.2]}
19... Nf7 {[%clk 0:02:26.4]} 20. Nfd2 {[%clk 0:01:19.5]} 20... Bd7 {[%clk
0:02:23.3]} 21. Nf1 {[%clk 0:01:18.9]} 21... Rh8 {[%clk 0:02:21.6]} 22. f3
{[%clk 0:01:19.1]} 22... Nh2 {[%clk 0:02:12.9]} 23. Nfd2 {[%clk 0:01:15.6]}
23... f5 {[%clk 0:02:08.5]} 24. Nc3 {[%clk 0:01:13.5]} 24... g5 {[%clk
0:02:08.4]} 25. Kf2 {[%clk 0:01:11.9]} 25... f4 {[%clk 0:02:00.9]} 26. g4 {[%clk
0:00:57.6]} 26... fxg3+ {[%clk 0:01:40]} 27. Kxg3 {[%clk 0:00:56.2]} 27... Rh3+
{[%clk 0:01:40.1]} 28. Kg2 {[%clk 0:00:54.2]} 28... g4 {[%clk 0:01:36.1]} 29.
fxg4 {[%clk 0:00:37.9]} 29... Ng5 {[%clk 0:01:18.8]} 30. Rh1 {[%clk 0:00:32.5]}
30... Nxg4 {[%clk 0:01:11.7]} 31. Rxh3 {[%clk 0:00:29.8]} 31... Nxh3 {[%clk
0:01:10.8]} 32. Kxh3 {[%clk 0:00:27]} 32... Nxe3+ {[%clk 0:01:11.1]} 33. Kg3
{[%clk 0:00:24.2]} 33... Nf5+ {[%clk 0:01:10.6]} 34. Kf2 {[%clk 0:00:23.2]}
34... c6 {[%clk 0:01:08.6]} 35. Bg4 {[%clk 0:00:21.5]} 35... Nd4 {[%clk
0:01:02.8]} 36. Bxd7 {[%clk 0:00:20.6]} 36... Kxd7 {[%clk 0:01:03.2]} 37. Nde4
{[%clk 0:00:19.2]} 37... a6 {[%clk 0:01:01.1]} 38. Ke3 {[%clk 0:00:18.9]} 38...
b5 {[%clk 0:01:00.3]} 39. dxc6+ {[%clk 0:00:18.6]} 39... Kxc6 {[%clk 0:01:00.3]}
40. cxb5+ {[%clk 0:00:19.1]} 40... axb5 {[%clk 0:01:00.3]} 41. a3 {[%clk
0:00:19.6]} 41... d5 {[%clk 0:00:56]} 42. Nf6 {[%clk 0:00:19.8]} 42... Nf5+
{[%clk 0:00:55.8]} 43. Kd2 {[%clk 0:00:18.8]} 43... Ne7 {[%clk 0:00:52.6]} 44.
Kd3 {[%clk 0:00:11.9]} 44... e4+ {[%clk 0:00:51]} 45. Kd2 {[%clk 0:00:10.6]}
45... Kc5 {[%clk 0:00:51.4]} 46. Nfxd5 {[%clk 0:00:09.8]} 46... Nxd5 {[%clk
0:00:50.8]} 47. Nxd5 {[%clk 0:00:10.7]} 47... Kxd5 {[%clk 0:00:51.2]} 48. Ke3
{[%clk 0:00:11.4]} 48... Kc4 {[%clk 0:00:46]} 49. Kxe4 {[%clk 0:00:11.6]} 49...
Kb3 {[%clk 0:00:46.5]} 50. Kd4 {[%clk 0:00:12]} 50... Kxb2 {[%clk 0:00:46.7]}
51. Kd3 {[%clk 0:00:11.2]} 51... Kxa3 {[%clk 0:00:44.9]} 52. Kc2 {[%clk
0:00:12.1]} 52... b4 {[%clk 0:00:43.7]} 0-1

[Event "Early-Titled-Tuesday-Blitz-December-26-2023"]
[Site "Chess.com"]
[Date "2023.12.26"]
[Round "3"]
[White "snowlord"]
[Black "Alexchess1984"]
[Result "0-1"]
[WhiteElo "2922"]
[BlackElo "2719"]
[TimeControl "180+1"]
[EndTime "8:27:37 PST"]
[Termination "Alexchess1984 won on time"]

1. d4 {[%clk 0:03:00.9]} 1... Nf6 {[%clk 0:02:59.7]} 2. c4 {[%clk 0:03:00.5]}
2... g6 {[%clk 0:02:54.8]} 3. Nc3 {[%clk 0:02:59.7]} 3... d5 {[%clk 0:02:55.4]}
4. cxd5 {[%clk 0:02:53.5]} 4... Nxd5 {[%clk 0:02:56.3]} 5. e4 {[%clk 0:02:54.1]}
5... Nxc3 {[%clk 0:02:56.6]} 6. bxc3 {[%clk 0:02:55]} 6... Bg7 {[%clk 0:02:57]}
7. Bc4 {[%clk 0:02:55.6]} 7... c5 {[%clk 0:02:56]} 8. Ne2 {[%clk 0:02:56.1]}
8... Nc6 {[%clk 0:02:53.8]} 9. Be3 {[%clk 0:02:56]} 9... Qa5 {[%clk 0:02:52.3]}
10. O-O {[%clk 0:02:53.5]} 10... O-O {[%clk 0:02:50.2]} 11. Rb1 {[%clk
0:02:47.6]} 11... Qc7 {[%clk 0:02:47.5]} 12. Qd2 {[%clk 0:02:37.3]} 12... Na5
{[%clk 0:02:44.4]} 13. Bd3 {[%clk 0:02:36.2]} 13... b6 {[%clk 0:02:45]} 14. h4
{[%clk 0:02:23]} 14... Bb7 {[%clk 0:02:13.8]} 15. h5 {[%clk 0:02:07.4]} 15...
Rfd8 {[%clk 0:02:08.1]} 16. h6 {[%clk 0:02:06.5]} 16... Bh8 {[%clk 0:02:07]} 17.
d5 {[%clk 0:01:51.9]} 17... e6 {[%clk 0:01:59.1]} 18. c4 {[%clk 0:01:49.1]}
18... Ba6 {[%clk 0:01:54]} 19. Rfc1 {[%clk 0:01:42.1]} 19... exd5 {[%clk
0:01:45.4]} 20. exd5 {[%clk 0:01:22.3]} 20... Re8 {[%clk 0:01:42.2]} 21. Ng3
{[%clk 0:01:09.9]} 21... Qe5 {[%clk 0:01:24.8]} 22. Bxc5 {[%clk 0:00:52.7]}
22... Rac8 {[%clk 0:01:13.5]} 23. Re1 {[%clk 0:00:27.9]} 23... Qc3 {[%clk
0:00:51.4]} 24. Qxc3 {[%clk 0:00:25.7]} 24... Bxc3 {[%clk 0:00:52.3]} 25. Rxe8+
{[%clk 0:00:25.9]} 25... Rxe8 {[%clk 0:00:53.2]} 26. Ne4 {[%clk 0:00:25.2]}
26... Bh8 {[%clk 0:00:35.9]} 27. Bb4 {[%clk 0:00:24.9]} 27... Bxc4 {[%clk
0:00:30.2]} 28. Bxc4 {[%clk 0:00:17.4]} 28... Nxc4 {[%clk 0:00:23.7]} 29. f3
{[%clk 0:00:15.3]} 29... f5 {[%clk 0:00:23.5]} 30. Ng5 {[%clk 0:00:13]} 30...
Ne3 {[%clk 0:00:16.7]} 31. d6 {[%clk 0:00:10.2]} 31... Bf6 {[%clk 0:00:16.2]}
32. Nh3 {[%clk 0:00:04.4]} 32... Nd5 {[%clk 0:00:16.2]} 33. Ba3 {[%clk
0:00:04.4]} 33... Nc3 {[%clk 0:00:15.7]} 34. Rb3 {[%clk 0:00:02.5]} 34... Ne2+
{[%clk 0:00:15.3]} 35. Kf2 {[%clk 0:00:01.5]} 35... Nd4 {[%clk 0:00:15.4]} 36.
Rd3 {[%clk 0:00:01.3]} 36... Kf7 {[%clk 0:00:14.8]} 37. Nf4 {[%clk 0:00:01.2]}
37... Ne6 {[%clk 0:00:13.5]} 0-1

[Event "Early-Titled-Tuesday-Blitz-December-26-2023"]
[Site "Chess.com"]
[Date "2023.12.26"]
[Round "3"]
[White "suyu28"]
[Black "tetrix83"]
[Result "1-0"]
[WhiteElo "2794"]
[BlackElo "2566"]
[TimeControl "180+1"]
[EndTime "8:27:42 PST"]
[Termination "suyu28 won on time"]

1. d4 {[%clk 0:03:00.9]} 1... Nf6 {[%clk 0:02:57.7]} 2. Bf4 {[%clk 0:03:00.5]}
2... c5 {[%clk 0:02:45.8]} 3. d5 {[%clk 0:02:57.5]} 3... d6 {[%clk 0:02:44.2]}
4. Nc3 {[%clk 0:02:55.4]} 4... a6 {[%clk 0:02:44.6]} 5. a4 {[%clk 0:02:54.9]}
5... e5 {[%clk 0:02:44.6]} 6. Bd2 {[%clk 0:02:41.8]} 6... Bf5 {[%clk 0:02:41.1]}
7. e3 {[%clk 0:02:32.7]} 7... g6 {[%clk 0:02:32.3]} 8. Nge2 {[%clk 0:02:32.3]}
8... h5 {[%clk 0:02:28.8]} 9. h4 {[%clk 0:02:27.6]} 9... e4 {[%clk 0:01:52.4]}
10. Ng3 {[%clk 0:02:26]} 10... Bg4 {[%clk 0:01:48.3]} 11. Be2 {[%clk 0:02:22.5]}
11... Bxe2 {[%clk 0:01:44.6]} 12. Qxe2 {[%clk 0:02:22.5]} 12... Qe7 {[%clk
0:01:41.1]} 13. Qc4 {[%clk 0:02:22.4]} 13... Bg7 {[%clk 0:01:39]} 14. Ngxe4
{[%clk 0:02:15.9]} 14... Nbd7 {[%clk 0:01:37.2]} 15. Nxf6+ {[%clk 0:02:12.8]}
15... Nxf6 {[%clk 0:01:34.7]} 16. a5 {[%clk 0:02:03.2]} 16... O-O {[%clk
0:01:33.8]} 17. e4 {[%clk 0:01:57.2]} 17... Rab8 {[%clk 0:01:26.8]} 18. Bg5
{[%clk 0:01:53.9]} 18... b5 {[%clk 0:01:25.4]} 19. axb6 {[%clk 0:01:53.9]} 19...
Rxb6 {[%clk 0:01:25.1]} 20. O-O {[%clk 0:01:52.2]} 20... Rxb2 {[%clk 0:01:23.1]}
21. Rxa6 {[%clk 0:01:41]} 21... Rxc2 {[%clk 0:01:19.7]} 22. Qb3 {[%clk
0:01:36.1]} 22... Rxc3 {[%clk 0:00:42.4]} 23. Qxc3 {[%clk 0:01:36]} 23... Qb7
{[%clk 0:00:42.8]} 24. Bxf6 {[%clk 0:01:18.2]} 24... Bxf6 {[%clk 0:00:41.1]} 25.
Qc4 {[%clk 0:01:11.3]} 25... Qe7 {[%clk 0:00:35.9]} 26. g3 {[%clk 0:01:09.4]}
26... Rb8 {[%clk 0:00:35.6]} 27. Kg2 {[%clk 0:01:06.2]} 27... Rb2 {[%clk
0:00:33.6]} 28. Re1 {[%clk 0:01:05.6]} 28... Bd4 {[%clk 0:00:23.3]} 29. Re2
{[%clk 0:01:03.3]} 29... Rb4 {[%clk 0:00:23.3]} 30. Ra8+ {[%clk 0:01:00.7]}
30... Kg7 {[%clk 0:00:22.8]} 31. Qa6 {[%clk 0:01:01]} 31... c4 {[%clk
0:00:21.7]} 32. Qc8 {[%clk 0:00:59.9]} 32... Kh6 {[%clk 0:00:16]} 33. e5 {[%clk
0:00:51]} 33... Bxe5 {[%clk 0:00:12.1]} 34. f4 {[%clk 0:00:51]} 34... Rb2 {[%clk
0:00:05.8]} 35. Qxc4 {[%clk 0:00:44.5]} 35... Qb7 {[%clk 0:00:02.3]} 36. Ra2
{[%clk 0:00:36.7]} 36... Rb4 {[%clk 0:00:02.1]} 37. Qc6 {[%clk 0:00:31.3]} 37...
Bd4 {[%clk 0:00:02.3]} 38. Rac2 {[%clk 0:00:19.7]} 1-0